[Event "CIS Master Groups 2024"]
[Site "Vasto"]
[Date "2024.04.12"]
[Round "7.20"]
[White "Martinelli, Valeria"]
[Black "Bordin, Silvia"]
[Result "1-0"]
[ECO "D30"]
[WhiteElo "2034"]
[BlackElo "1978"]
[Annotator "TA"]
[PlyCount "65"]
[EventDate "2024.04.07"]
[EventType "team-tourn"]
[EventCountry "ITA"]
[SourceTitle "playchess.com"]
[Source "ChessBase"]
[SourceQuality "1"]
[TimeControl "40/5400+30:900+30"]

{[%evp 19,65,32,47,24,20,22,37,46,45,42,27,35,34,30,46,27,25,14,83,47,189,193,242,253,229,250,400,250,247,252,383,371,478,244,822,795,786,397,29991,529,526,505,673,348,675,617,1073,1049]} 1. c4 {[%emt 0:00:27]} e6 {[%emt 0:00:12]} 2. Nf3 {[%emt 0:00:10]} d5 {[%emt 0:00:18]} 3. d4 {[%emt 0:00:05]} c5 {[%emt 0:00:42]} 4. cxd5 {[%emt 0:00:25]} exd5 {[%emt 0:00:10]} 5. g3 {[%emt 0:00:07]} Nf6 {[%emt 0:01:10]} 6. Bg2 {[%emt 0:00:09]} Nc6 {[%emt 0:01:08]} 7. O-O {[%emt 0:00:33]} c4 {[%emt 0:01:25]} 8. b3 {[%emt 0:02:19]} cxb3 {[%emt 0:02:36]} 9. Qxb3 {[%emt 0:00:09]} Be7 {[%emt 0:01:59]} 10. Bg5 {[%emt 0:02:06]} O-O {[%emt 0:01:24]} 11. Bxf6 {[%emt 0:06:11]} Bxf6 {[%emt 0:00:33]} 12. e3 {[%emt 0:00:07]} Rb8 {[%emt 0:05:33]} 13. Nc3 {[%emt 0:02:05] White is slightly better.} Be6 {[%emt 0:00:25]} 14. Ne1 {[%emt 0:03:03][%cal Oe1d3]} Na5 {[%emt 0:13:15]} 15. Qd1 {[%emt 0:06:14]} Rc8 {[%emt 0:03:33]} 16. Rc1 {[%emt 0:03:00]} Be7 {[%emt 0:07:15]} 17. Nd3 {[%emt 0:17:56][%cal Oc3d5]} (17. Nxd5 Rxc1 18. Nxe7+ Qxe7 $11) 17... Ba3 {[%emt 0:05:09]} 18. Rc2 {[%emt 0:00:32]} Nc4 {[%emt 0:01:28]} (18... Qd7 $11) 19. Nf4 {[%emt 0:09:57][%cal Rc3d5] Excellent horsemanship.} Nb2 {[%emt 0:13:18] This costs Black the game.} (19... Bf5 $14) 20. Qe2 $18 {[%emt 0:01:44]} Bf5 {[%emt 0:02:05]} (20... Qd7 {is a better defense.} 21. Ncxd5 Bg4) 21. Rxb2 {[%emt 0:00:35]} Rxc3 {[%emt 0:00:14]} 22. Rxb7 {[%emt 0:05:29]} Qa5 {[%emt 0:01:19]} (22... Bd6 {keeps fighting.} 23. Nxd5 (23. Bxd5 Bxf4 24. Qf3 Bg4 $17) 23... Ra3) 23. Rb5 {[%emt 0:05:14]} ({Not} 23. Bxd5 Bd6 $18) ({But not} 23. Nxd5 Rcc8 24. Qh5 g6 $18) 23... Qa4 {[%emt 0:01:45] [#] aiming for ...Rc2.} 24. Rxd5 {[%emt 0:01:00]} Bc8 {[%emt 0:01:56]} (24... Bg6 $142 25. Nxg6 hxg6) 25. Qh5 {[%emt 0:07:29]} Qc2 {[%emt 0:03:49]} 26. Rg5 {[%emt 0:08:42]} (26. Re5 $142 {And now Be4 would win.} Bd6 27. Be4) 26... g6 $2 {[%emt 0:11:21]} (26... Rc7 27. Ra5 Bb4) 27. Qh6 {[%emt 0:03:11] [#] Threatening mate with Nh5.} Rc7 {[%emt 0:06:09]} 28. Ra5 {[%emt 0:07:12]} Qb2 $2 {[%emt 0:03:46]} (28... Be7 $18 29. Nd5 Rb7 30. Nxe7+ Rxe7) 29. Nd5 {[%emt 0:01:50]} (29. Rh5 $142 Re8 30. Qxh7+ Kf8 31. Nd5 Qxf2+ 32. Rxf2 Rc1+ 33. Bf1 Rxf1+ 34. Rxf1 f5 35. Qh8+ (35. Qxg6 Be6 36. Rh8+ Bg8 37. Rxg8#) 35... Kf7 36. Rh7+ Ke6 37. Qe5#) 29... Rc6 {[%emt 0:01:39]} 30. Rxa7 {[%emt 0:00:30]} Re6 {[%emt 0:01:47]} 31. Qh4 {[%emt 0:01:17] Hoping for Be4.} h5 $2 {[%emt 0:01:10]} (31... Ba6 32. Bh3 Rc6 33. Nf6+ Kg7) 32. Qg5 {[%emt 0:00:32]} Kg7 {[%emt 0:01:21]} 33. Nf4 {[%emt 0:00:25][%csl LRe6,LRh5] Weighted Error Value: White=1.02/Black=1.05.  Mistake:       	White=1     	Black=7      Inaccurate:     	White=3     	Black=2      OK:         	White=9     	Black=6      Best:        	White=2     	Black=2} 1-0

[Event "CIS Master Groups 2024"]
[Site "Vasto"]
[Date "2024.04.12"]
[Round "7.21"]
[White "Socko, Monika"]
[Black "Osmak, Yuliia"]
[Result "1/2-1/2"]
[ECO "D05"]
[WhiteElo "2428"]
[BlackElo "2459"]
[Annotator "TA"]
[PlyCount "49"]
[EventDate "2024.04.07"]
[EventType "team-tourn"]
[EventCountry "ITA"]
[SourceTitle "playchess.com"]
[Source "ChessBase"]
[SourceQuality "1"]
[TimeControl "40/5400+30:900+30"]

{[%evp 15,49,5,4,0,0,0,12,-4,25,0,0,11,53,61,42,50,43,47,66,76,85,44,56,13,16,20,33,28,39,0,0,0,40,0,0,0]} 1. d4 {[%emt 0:00:09]} d5 {[%emt 0:00:08]} 2. Nf3 {[%emt 0:00:19]} Nf6 {[%emt 0:00:04]} 3. e3 {[%emt 0:00:25]} e6 {[%emt 0:00:48]} 4. Bd3 {[%emt 0:00:38]} b6 {[%emt 0:01:13]} 5. O-O {[%emt 0:00:54]} Bb7 {[%emt 0:00:38]} 6. b3 {[%emt 0:01:44]} Be7 {[%emt 0:03:09]} 7. Bb2 {[%emt 0:01:08]} O-O {[%emt 0:00:22]} 8. Nbd2 {[%emt 0:00:51]} Nbd7 {[%emt 0:02:21]} 9. Qe2 {[%emt 0:01:40]} Ne4 {[%emt 0:01:21]} 10. c4 {[%emt 0:02:51]} a5 {[%emt 0:01:31]} 11. Rfd1 {[%emt 0:10:30]} a4 {[%emt 0:04:31]} 12. cxd5 {[%emt 0:07:00]} exd5 {[%emt 0:02:00]} 13. bxa4 {[%emt 0:00:23]} Rxa4 {[%emt 0:09:09]} 14. Bb5 {[%emt 0:02:16]} Ra5 {[%emt 0:03:50]} 15. Nxe4 {[%emt 0:06:29]} dxe4 {[%emt 0:00:05]} 16. Ne5 {[%emt 0:00:16]} Nf6 {[%emt 0:11:29]} 17. a4 {[%emt 0:15:02]} Nd5 {[%emt 0:02:09]} 18. Rac1 {[%emt 0:02:39]} Bd6 {[%emt 0:04:15]} 19. Qg4 {[%emt 0:08:56]} (19. Qc2 $5) 19... f5 {[%emt 0:08:55]} 20. Qh3 {[%emt 0:03:36]} Rf6 {[%emt 0:12:17]} 21. g3 {[%emt 0:04:50]} Ra8 {[%emt 0:04:40]} 22. Nd7 {[%emt 0:04:49]} Rf7 {[%emt 0:00:26]} 23. Ne5 {[%emt 0:00:10]} Rf6 {[%emt 0:00:46]} 24. Nd7 {[%emt 0:01:35]} Rf7 {[%emt 0:00:11]} 25. Ne5 {[%emt 0:00:43] Weighted Error Value: White=0.14 (very precise) /Black=0.09 (flawless) .  Inaccurate:     	White=3     	Black=2      OK:         	White=7     	Black=5      Best:        	White=2     	Black=3} 1/2-1/2

[Event "CIS Master Groups 2024"]
[Site "Vasto"]
[Date "2024.04.12"]
[Round "7.22"]
[White "Brunello, Marina"]
[Black "Zimina, Olga"]
[Result "1-0"]
[ECO "C24"]
[WhiteElo "2353"]
[BlackElo "2299"]
[Annotator "RC"]
[PlyCount "127"]
[EventDate "2024.04.07"]
[EventType "team-tourn"]
[EventCountry "ITA"]
[SourceTitle "playchess.com"]
[Source "ChessBase"]
[SourceQuality "1"]
[TimeControl "40/5400+30:900+30"]

1. e4 {[%emt 0:04:38]} e5 {[%emt 0:00:11]} 2. Nf3 {[%emt 0:00:07]} Nc6 {[%emt 0:00:05]} 3. Bc4 {[%emt 0:00:12]} Nf6 {[%emt 0:00:06]} 4. d3 {[%emt 0:00:10]} d5 {[%emt 0:00:06]} 5. exd5 {[%emt 0:01:11]} Nxd5 {[%emt 0:00:05]} 6. O-O {[%emt 0:00:07]} Nb6 {[%emt 0:00:03]} 7. Bb5 {[%emt 0:01:10]} Bd6 {[%emt 0:00:06]} 8. Bxc6+ {[%emt 0:05:24]} bxc6 {[%emt 0:01:32]} 9. Nxe5 {[%emt 0:00:03]} Bxe5 {[%emt 0:00:04]} 10. Re1 {[%emt 0:00:04]} Qe7 {[%emt 0:00:05]} 11. Kh1 {[%emt 0:00:24]} Bb7 {[%emt 0:00:06]} 12. f4 {[%emt 0:06:29]} O-O-O {[%emt 0:00:09]} 13. fxe5 {[%emt 0:03:48]} Rhe8 {[%emt 0:06:12]} 14. Nc3 {[%emt 0:07:02]} c5 {[%emt 0:02:31]} 15. Bf4 {[%emt 0:04:03]} Kb8 {[%emt 0:18:10]} 16. a4 {[%emt 0:07:51]} a6 {[%emt 0:04:16]} 17. Bg3 {[%emt 0:08:27]} Nd7 {[%emt 0:05:45]} 18. Qg4 {[%emt 0:05:29]} Qe6 {[%emt 0:03:14]} 19. Qxe6 {[%emt 0:07:25]} Rxe6 {[%emt 0:02:28]} 20. Re2 {[%emt 0:01:53]} Rde8 {[%emt 0:03:38]} 21. Rae1 {[%emt 0:00:13]} h6 {[%emt 0:00:53]} 22. b3 {[%emt 0:07:57]} Bc6 {[%emt 0:01:06]} 23. Ne4 {[%emt 0:03:41]} R6e7 {[%emt 0:15:53]} 24. Kg1 {[%emt 0:06:18]} Nxe5 {[%emt 0:03:33]} 25. Nc3 {[%emt 0:01:09]} f6 {[%emt 0:01:44]} 26. Bf2 {[%emt 0:00:34]} Rd8 {[%emt 0:04:44]} 27. Bxc5 {[%emt 0:01:20]} Red7 {[%emt 0:00:04]} 28. d4 {[%emt 0:02:03]} Ng6 {[%emt 0:00:25]} 29. Re6 {[%emt 0:00:28]} Kb7 {[%emt 0:04:57]} 30. g3 {[%emt 0:00:15]} Nf8 {[%emt 0:04:59]} 31. R6e3 {[%emt 0:04:14]} h5 {[%emt 0:05:55]} 32. b4 {[%emt 0:05:15]} Kc8 {[%emt 0:02:31]} 33. b5 {[%emt 0:00:31]} axb5 {[%emt 0:00:35]} 34. axb5 {[%emt 0:00:04]} Bb7 {[%emt 0:00:06]} 35. b6 {[%emt 0:01:02]} Bc6 {[%emt 0:00:48]} 36. Rb1 {[%emt 0:01:34]} Ng6 {[%emt 0:02:27]} 37. bxc7 {[%emt 0:00:38]} Rh8 {[%emt 0:00:21]} 38. Rb8+ {[%emt 0:02:54]} Kxc7 {[%emt 0:00:11]} 39. Rxh8 {[%emt 0:00:03]} Nxh8 {[%emt 0:00:06]} 40. Na2 {[%emt 0:01:02]} Nf7 {[%emt 0:07:51]} 41. Nb4 {[%emt 0:16:24]} Bb7 {[%emt 0:15:05]} 42. c4 {[%emt 0:00:00]} Nh6 {[%emt 0:00:00]} 43. d5 {[%emt 0:00:00]} Nf5 {[%emt 0:00:00]} 44. Re6 {[%emt 0:00:00]} Nd6 {[%emt 0:00:00]} 45. Bxd6+ {[%emt 0:00:00]} Rxd6 {[%emt 0:00:00]} 46. Re7+ {[%emt 0:00:54]} Rd7 {[%emt 0:00:00]} 47. Rxd7+ {[%emt 0:01:04]} Kxd7 {[%emt 0:00:00]} 48. c5 {[%emt 0:00:05]} Kc7 {[%emt 0:00:00]} 49. Kf2 {[%emt 0:00:08]} Bc8 {[%emt 0:00:00]} 50. h4 {[%emt 0:00:22]} g5 {[%emt 0:00:00]} 51. Ke3 {[%emt 0:00:09]} Bf5 {[%emt 0:00:00]} 52. Kd4 {[%emt 0:00:46]} Kd7 {[%emt 0:01:43]} 53. Nd3 {[%emt 0:01:22]} Ke7 {[%emt 0:01:17]} 54. Nb2 {[%emt 0:00:11]} Bh3 {[%emt 0:00:40]} 55. Nc4 {[%emt 0:00:18]} Bg2 {[%emt 0:01:09]} 56. Ne3 {[%emt 0:00:17]} Bh3 {[%emt 0:00:20]} 57. Ke4 {[%emt 0:00:28]} Kd7 {[%emt 0:00:41]} 58. Nf5 {[%emt 0:00:56]} Bg2+ {[%emt 0:00:20]} 59. Kd4 {[%emt 0:00:03]} Bh3 {[%emt 0:00:07]} 60. c6+ {[%emt 0:00:58]} Kc7 {[%emt 0:00:16]} 61. Ng7 {[%emt 0:00:31]} Kd6 {[%emt 0:03:07]} 62. Nxh5 {[%emt 0:00:18]} Ke7 {[%emt 0:01:59]} 63. hxg5 {[%emt 0:00:04]} fxg5 {[%emt 0:00:06]} 64. Ke4 {[%emt 0:05:00]} 1-0

[Event "CIS Master Groups 2024"]
[Site "Vasto"]
[Date "2024.04.12"]
[Round "7.23"]
[White "Paolillo, Gaia"]
[Black "Maione, Melissa"]
[Result "1/2-1/2"]
[ECO "E67"]
[WhiteElo "2057"]
[BlackElo "1936"]
[Annotator "TA"]
[PlyCount "41"]
[EventDate "2024.04.07"]
[EventType "team-tourn"]
[EventCountry "ITA"]
[SourceTitle "playchess.com"]
[Source "ChessBase"]
[SourceQuality "1"]
[TimeControl "40/5400+30:900+30"]

{[%evp 22,41,0,-18,-2,-14,0,-10,25,0,0,0,0,0,0,-2,0,0,0,0,0,0]} 1. Nf3 {[%emt 0:00:27]} Nf6 {[%emt 0:00:18]} 2. c4 {[%emt 0:00:37]} g6 {[%emt 0:00:26]} 3. Nc3 {[%emt 0:01:18]} d6 {[%emt 0:02:29]} 4. d4 {[%emt 0:00:46]} Bg7 {[%emt 0:00:52]} 5. g3 {[%emt 0:00:59]} O-O {[%emt 0:00:54]} 6. Bg2 {[%emt 0:00:14]} c6 {[%emt 0:03:22]} 7. O-O {[%emt 0:01:13]} Nbd7 {[%emt 0:01:21]} 8. h3 {[%emt 0:02:36]} e5 {[%emt 0:04:57]} 9. dxe5 {[%emt 0:02:35]} Nxe5 {[%emt 0:02:27]} 10. Nxe5 {[%emt 0:07:43]} dxe5 {[%emt 0:00:12]} 11. Qxd8 {[%emt 0:05:54]} Rxd8 {[%emt 0:01:09]} 12. Be3 {[%emt 0:00:59]} Be6 {[%emt 0:06:08]} 13. b3 {[%emt 0:01:37]} a6 {[%emt 0:13:50]} 14. Rac1 {[%emt 0:31:44]} Nd7 {[%emt 0:12:53]} 15. Rfd1 {[%emt 0:07:07]} f5 {[%emt 0:07:44] The position is equal.} 16. Na4 {[%emt 0:07:41]} Bf6 {[%emt 0:08:01]} 17. Nb6 {[%emt 0:14:34]} Nxb6 {[%emt 0:04:27]} 18. Bxb6 {[%emt 0:00:11]} Rxd1+ {[%emt 0:01:30]} 19. Rxd1 {[%emt 0:00:05]} Kf7 {[%emt 0:00:23]} 20. e3 {[%emt 0:06:11]} Ke8 {[%emt 0:04:02]} 21. Rd6 {[%emt 0:00:33] A rather calm draw.   Weighted Error Value: White=0.07 (flawless) /Black=0.07 (flawless) .  Inaccurate:     	---       	Black=1      OK:         	White=5     	Black=3} 1/2-1/2

[Event "CIS Master Groups 2024"]
[Site "Vasto"]
[Date "2024.04.12"]
[Round "7.24"]
[White "De Rosa, Mariagrazia Antoniet"]
[Black "Di Primio, Eugenia"]
[Result "1-0"]
[ECO "C70"]
[WhiteElo "2077"]
[BlackElo "1934"]
[Annotator "TA"]
[PlyCount "135"]
[EventDate "2024.04.07"]
[EventType "team-tourn"]
[EventCountry "ITA"]
[SourceTitle "playchess.com"]
[Source "ChessBase"]
[SourceQuality "1"]
[TimeControl "40/5400+30:900+30"]

{[%evp 35,135,24,33,29,49,-114,-18,-15,-18,-38,21,39,21,13,35,-121,-114,-430,-408,-414,-420,-751,-360,-346,397,411,439,441,424,448,498,491,519,391,427,427,440,431,455,466,459,464,495,492,534,534,552,543,654,627,778,752,1054,984,1133,970,1217,1125,1608,1078,12835,12842,12689,12838,29967,29968,29965,29944,29947,29944,29967,11744,29972,29973,29972,29973,29972,0,29967,29965,29968,29969,29971,29968,29967,29968,29966,11144,29973,29973,29976,29972,29967,4137,4137,4137,29974,29975,29975,29975,29975,29969]} 1. e4 {[%emt 0:01:02]} e5 {[%emt 0:00:04]} 2. Nf3 {[%emt 0:00:11]} Nc6 {[%emt 0:00:05]} 3. Bb5 {[%emt 0:00:33]} a6 {[%emt 0:00:10]} 4. Ba4 {[%emt 0:00:08]} Nge7 {[%emt 0:00:11]} 5. c4 {[%emt 0:06:46]} g6 {[%emt 0:02:10]} 6. d4 {[%emt 0:00:49] C70: Ruy Lopez: 3...a6 4 Ba4, Norwegian and Delayed Schliemann.} exd4 {[%emt 0:01:45]} 7. Nxd4 {[%emt 0:00:11]} Bg7 {[%emt 0:02:13]} 8. Be3 {[%emt 0:01:43]} Ne5 {[%emt 0:23:37]} 9. Qe2 $146 {[%emt 0:19:48]} ({Predecessor:} 9. Bb3 d6 10. Nc3 O-O 11. O-O c5 12. Nc2 f5 13. Qd2 Be6 14. Rfd1 Nxc4 15. Qe2 {0-1 Kabisch,T (2347)-Romanov,E (2579) Wuerttemberg IM 2019 (4)}) 9... c5 {[%emt 0:14:00]} 10. Nb3 {[%emt 0:11:53]} b5 {[%emt 0:12:40]} 11. cxb5 {[%emt 0:01:44]} c4 {[%emt 0:00:23]} 12. Nd4 {[%emt 0:15:04]} Qa5+ {[%emt 0:06:40]} 13. Nc3 {[%emt 0:00:56]} Nd3+ {[%emt 0:00:26]} 14. Kf1 {[%emt 0:01:16]} O-O {[%emt 0:01:58]} 15. h4 {[%emt 0:12:57]} f5 {[%emt 0:06:30]} 16. Nb3 {[%emt 0:04:09]} Qc7 {[%emt 0:08:12]} 17. b6 {[%emt 0:00:33]} Qd6 {[%emt 0:00:31]} 18. Na5 {[%emt 0:02:46]} (18. Nd2 $5 fxe4 (18... Nxb2 $2 19. Nxc4 Qb4 20. Bb3 $18) 19. Nxc4 $14) 18... fxe4 {[%emt 0:04:24]} (18... Qb4 19. Nxc4 fxe4 (19... Qxc4 $2 20. Bb3 $18) 20. Bb3 $16) 19. Nxc4 {[%emt 0:03:29]} Qe6 {[%emt 0:03:23] [#]} 20. Kg1 $2 {[%emt 0:04:48]} (20. Nxe4 $1 $14 {stays ahead.} Qxe4 (20... Qxc4 $2 21. Bb3 $18) 21. Bb3) 20... Kh8 {[%emt 0:01:01]} (20... Qxc4 $2 21. Bb3 $18) (20... d5 $1 $17 {[%cal Rd5c4]} 21. Na5 Rb8) 21. Na5 $11 {[%emt 0:02:01]} d5 {[%emt 0:05:05]} 22. Bb3 {[%emt 0:06:18]} Qe5 {[%emt 0:01:22]} (22... Rb8 $15) 23. b7 $11 {[%emt 0:01:30]} Bxb7 $1 {[%emt 0:00:29]} 24. Nxb7 {[%emt 0:00:05]} d4 {[%emt 0:00:29] [#]} 25. h5 $2 {[%emt 0:01:28]} (25. Nxe4 $1 $14 {keeps the upper hand.} Qxe4 26. Nd6) 25... dxe3 $17 {[%emt 0:01:14]} (25... dxc3 26. bxc3 (26. h6 $2 Bf6 $19) 26... Rab8 27. Bd4 $14 (27. h6 Bf6 $14)) 26. hxg6 $2 {[%emt 0:00:29][%mdl 8192]} (26. fxe3 $17 Nf2 (26... Rf2 27. Qg4 $11) 27. h6 Nxh1 28. hxg7+ Kxg7 29. Kxh1) 26... exf2+ $19 {[%emt 0:01:24]} 27. Kf1 {[%emt 0:00:46]} Nxg6 {[%emt 0:00:14]} 28. Rh5 {[%emt 0:00:27]} (28. g3 $142 Rae8 (28... Qxg3 29. Nxe4 Qb8 30. Qxd3 $16) 29. Rd1) 28... Rf5 {[%emt 0:03:01]} (28... Qe7 $142 29. Qe3 Bxc3 (29... Qxb7 $2 30. Bd5 $19) 30. bxc3 Ngf4 (30... Qxb7 $2 31. Rd1 $19)) 29. Rxf5 $19 {[%emt 0:00:18] [#]} (29. Nd6 $2 Qxd6 30. Rxf5 Qh2 31. Qxe4 Rd8 (31... Nxb2 32. Qxa8+ Bf8 33. Rxf8+ Kg7 34. Qa7+ Kh6 35. Qe3+) (31... Qg1+ $2 32. Ke2 $19) 32. Rxf2 Qh1+ (32... Nxf2 $2 33. Kxf2 Bd4+ 34. Ke2 $19) 33. Ke2 Qxa1 $19) 29... Qxf5 $4 {[%emt 0:00:01][%mdl 8192]} (29... Qh2 $1 $19 {[%csl Gf2][%cal Rh2g1] and all is fine.} 30. Qxe4 Ngf4 31. Rxf4 Qg1+ 32. Ke2 Nxf4+ 33. Qxf4 Qxa1) 30. Nd6 $18 {[%emt 0:00:17]} Ngf4 {[%emt 0:01:11]} 31. Nxf5 {[%emt 0:00:23]} Nxe2 {[%emt 0:00:01]} 32. Kxe2 {[%emt 0:00:20]} (32. Nxe2 Bf8 33. Neg3 Re8) 32... Nxb2 {[%emt 0:00:29]} 33. Nxe4 {[%emt 0:00:30]} (33. Nxg7 Kxg7 34. Kxf2 Nd3+ 35. Ke3 Nc5) 33... Re8 {[%emt 0:01:00]} 34. Kf3 {[%emt 0:01:10]} Nd3 {[%emt 0:00:36]} 35. Nxg7 {[%emt 0:01:12]} Kxg7 {[%emt 0:00:03]} 36. Rf1 {[%emt 0:00:00]} (36. Nxf2 Rf8+ 37. Kg3 Nxf2 $16) 36... Rf8+ {[%emt 0:00:53]} 37. Ke3 {[%emt 0:00:00]} Ne5 {[%emt 0:00:12]} 38. Bd1 {[%emt 0:00:50]} (38. Rxf2 Ng4+ 39. Ke2 Nxf2 40. Nxf2 h5 $16) 38... Rd8 {[%emt 0:00:32]} 39. Be2 {[%emt 0:00:16]} (39. Nxf2 Nc4+ 40. Kf4 Rd2 $18) 39... a5 {[%emt 0:00:40]} 40. Rxf2 {[%emt 0:00:22]} Rb8 {[%emt 0:00:35]} 41. Rf5 {[%emt 0:15:43]} Nc6 {[%emt 0:15:26]} 42. Rc5 {[%emt 0:00:00]} Rb6 {[%emt 0:00:00]} 43. Rb5 {[%emt 0:00:00]} Rxb5 {[%emt 0:00:00]} 44. Bxb5 {[%emt 0:00:00]} Ne7 {[%emt 0:00:00]} 45. a4 {[%emt 0:00:00]} Nd5+ {[%emt 0:00:00]} 46. Kf3 {[%emt 0:00:00]} h5 {[%emt 0:00:00]} 47. Nd6 {[%emt 0:00:00]} h4 {[%emt 0:00:00]} 48. Nf5+ {[%emt 0:00:00]} Kf6 {[%emt 0:00:00]} 49. Nxh4 {[%emt 0:00:00]} Kg5 {[%emt 0:00:00]} 50. g3 {[%emt 0:00:00]} Nc3 {[%emt 0:00:00]} 51. Bc6 {[%emt 0:00:00]} Na2 {[%emt 0:00:00]} 52. Ng2 {[%emt 0:00:00]} Nb4 {[%emt 0:00:00]} 53. Bb5 {[%emt 0:01:48]} (53. Bd7 $142 Nd3 54. Bb5 (54. Ke3 Nc5 $18) 54... Nc5 55. Ne3 Kf6 56. Nc4 Nb3 57. Ke4 Ke6 58. Ne3 Nc5+ 59. Kd4 Nb3+ 60. Kc4 (60. Kc3 Nc5 $18) 60... Nd2+ 61. Kd3) 53... Nc2 {[%emt 0:00:00]} 54. Ne3 {[%emt 0:01:49]} Nd4+ {[%emt 0:00:29]} 55. Ke4 {[%emt 0:00:32]} Nb3 {[%emt 0:00:20]} 56. Kf3 {[%emt 0:01:59]} Nd4+ {[%emt 0:00:11]} 57. Kg2 {[%emt 0:00:54]} Nb3 {[%emt 0:01:13]} 58. Nc4 {[%emt 0:00:33]} Kg4 {[%emt 0:00:24]} 59. Bd7+ {[%emt 0:00:24]} Kg5 {[%emt 0:00:06]} 60. Kf3 {[%emt 0:00:50]} Nc5 {[%emt 0:00:27]} 61. Bb5 {[%emt 0:00:43]} (61. Bc6 $142 Nb3 62. Be4 Kf6 63. Ke3 Nc5 64. Bc2 (64. Nxa5 Nxa4 65. Nc4 Nc5 $18) 64... Ke7 65. Kd4 (65. Nxa5 Kd8 $18) 65... Ne6+ 66. Kd5) 61... Nb3 {[%emt 0:00:12]} 62. Nd6 {[%emt 0:00:46]} Nd4+ {[%emt 0:01:13]} 63. Ke3 {[%emt 0:00:24]} Nc2+ {[%emt 0:00:18]} 64. Kd2 {[%emt 0:00:51]} (64. Kd3 $142 Nb4+ 65. Ke2 Nd5 66. Nc4 (66. Kf3 Kf6 $18) 66... Kg4 67. Kf2 (67. Nxa5 Kxg3 68. Kd3 Nb6 $18) 67... Kg5 68. Nxa5 Kf6 69. Nc4) 64... Nb4 $18 {[%emt 0:00:40]} 65. Bd7 {[%emt 0:00:18]} Na6 {[%emt 0:00:33]} 66. Ne4+ {[%emt 0:00:38]} Kg6 {[%emt 0:00:20]} 67. Kc3 {[%emt 0:00:10]} Nb4 {[%emt 0:00:03]} 68. Kc4 {[%emt 0:00:20]} 1-0

[Event "CIS Master Groups 2024"]
[Site "Vasto"]
[Date "2024.04.13"]
[Round "8.1"]
[White "Predke, Alexandr"]
[Black "Dardha, Daniel"]
[Result "0-1"]
[ECO "A53"]
[WhiteElo "2673"]
[BlackElo "2630"]
[Annotator "TA"]
[PlyCount "80"]
[EventDate "2024.04.07"]
[EventType "team-tourn"]
[EventCountry "ITA"]
[SourceTitle "playchess.com"]
[Source "ChessBase"]
[SourceQuality "1"]
[TimeControl "40/5400+30:900+30"]

{[%evp 12,80,13,13,10,11,15,18,0,0,0,0,0,0,-8,-64,-62,-72,-67,-54,-75,-87,-53,-97,-102,-138,-127,-141,-139,-139,-132,-432,-412,-403,-423,-412,-343,-367,-359,-334,-340,-362,-245,-258,-256,-270,-262,-349,-342,-368,-360,-371,-372,-371,-289,-286,-269,-294,-289,-333,-341,-351,-356,-403,-315,-421,-421,-410,-407,-428,-422]} 1. Nf3 {[%emt 0:00:03]} d5 {[%emt 0:02:05]} 2. g3 {[%emt 0:00:57]} Nd7 {[%emt 0:01:20]} 3. Bg2 {[%emt 0:01:20]} e5 {[%emt 0:00:05]} 4. O-O {[%emt 0:00:05]} Ngf6 {[%emt 0:03:01]} 5. d3 {[%emt 0:00:06]} c6 {[%emt 0:02:14]} 6. c4 {[%emt 0:00:28]} dxc4 {[%emt 0:00:32]} 7. dxc4 {[%emt 0:00:05]} Bc5 {[%emt 0:00:09]} 8. Nc3 {[%emt 0:01:01]} O-O {[%emt 0:01:13]} 9. Qc2 {[%emt 0:01:36]} Qe7 {[%emt 0:06:59] The position is equal.} 10. b3 {[%emt 0:20:22]} Re8 {[%emt 0:12:27]} 11. Bb2 {[%emt 0:22:37]} Nf8 {[%emt 0:07:16]} 12. Rad1 {[%emt 0:13:52]} e4 {[%emt 0:06:48]} 13. Ng5 {[%emt 0:00:03]} (13. Nd4 $11) 13... Bf5 $15 {[%emt 0:00:17]} 14. Na4 {[%emt 0:00:04]} Bb4 {[%emt 0:02:41]} 15. Bxf6 {[%emt 0:09:59]} gxf6 {[%emt 0:02:16]} 16. Nh3 {[%emt 0:00:04]} Qe5 {[%emt 0:04:47]} 17. c5 {[%emt 0:06:06]} e3 {[%emt 0:02:33] Black is more active.} (17... Rad8 {simplifies} 18. e3 Ne6 19. Qc4 Bxc5 20. Nxc5 Qxc5 21. Qxc5 Nxc5 22. Nf4 Kg7) 18. Qc4 {[%emt 0:00:07]} Bd2 {[%emt 0:00:59]} 19. fxe3 {[%emt 0:01:28]} Bxe3+ {[%emt 0:01:39]} 20. Kh1 {[%emt 0:01:34]} Rad8 $36 {[%emt 0:01:37][%mdl 2048] Black is really pushing.} 21. Nc3 $2 {[%emt 0:03:13][%mdl 8192] [#] Now White is beyond hope.} (21. Rxd8 $17 Rxd8 22. Qc3) 21... Be6 $19 {[%emt 0:05:10] This pair of bishops is nice.} (21... Bxc5 $2 22. b4 Be3 23. Nf4 $19) 22. Qb4 {[%emt 0:05:09]} Bxc5 {[%emt 0:01:54]} (22... Bd2 23. Rxd2 Rxd2 24. Nf2 $19) 23. Qxb7 {[%emt 0:00:18]} Bxh3 {[%emt 0:03:44]} 24. Bxh3 {[%emt 0:00:06]} Qxc3 {[%emt 0:00:04]} 25. Rxd8 {[%emt 0:00:13]} Rxd8 {[%emt 0:00:06]} 26. Qxc6 {[%emt 0:00:02]} Qe5 {[%emt 0:03:25] Threatens to win with ...Kg7.} 27. Qxf6 {[%emt 0:01:22]} Qxf6 {[%emt 0:00:16]} (27... Qxe2 $2 28. Qxf7+ (28. Qxd8 Bb4 $18) 28... Kh8 29. Qf6+ Kg8 30. Qxd8 $18) 28. Rxf6 {[%emt 0:00:02]} Rd2 {[%emt 0:00:19]} 29. Bg4 {[%emt 0:02:07]} Rxa2 {[%emt 0:00:52]} 30. Bf3 {[%emt 0:00:49]} Kg7 {[%emt 0:03:15]} 31. Rf5 {[%emt 0:00:16]} Bb6 {[%emt 0:01:01]} 32. Bd5 {[%emt 0:00:24]} Ne6 {[%emt 0:00:33]} (32... Rxe2 33. Rxf7+ (33. Bxf7 $2 {too greedy.} Rf2 $19) 33... Kg6 34. Rxf8 $14) 33. Bc4 {[%emt 0:00:02]} Rd2 {[%emt 0:04:25]} 34. Kg2 {[%emt 0:00:34]} Rd7 {[%emt 0:01:09]} 35. h4 {[%emt 0:00:13]} h6 {[%emt 0:00:50]} 36. Re5 {[%emt 0:02:32]} Nd4 {[%emt 0:01:47]} 37. g4 {[%emt 0:01:48]} Bd8 {[%emt 0:01:50]} 38. g5 {[%emt 0:01:52]} hxg5 {[%emt 0:00:15]} 39. hxg5 {[%emt 0:00:01]} Re7 {[%emt 0:00:53]} 40. Rd5 {[%emt 0:00:11]} Bb6 {[%emt 0:00:07] Weighted Error Value: White=0.32/Black=0.15 (very precise) .  Loses game:     	White=1     	---        Mistake:       	White=1     	---        Inaccurate:     	White=4     	Black=2      OK:         	White=10    	Black=18     Best:        	White=2     	Black=2} ({Worse is} 40... Nxe2 41. Rxd8 Nf4+ 42. Kg3 $11) 0-1